fUSD/lending_fUSD_20260402
["ID","MTS","AMOUNT","RATE_DAILY","PERIOD"]
[419312423,1775147444179,-150.0,0.00015118,2]
[419312424,1775147444189,-150.0,0.00015125,2]
[419312425,1775147444198,-150.0,0.00015143,2]
[419312426,1775147444208,-150.0,0.00015143,2]
[419312427,1775147444217,-150.0,0.00015143,2]
[419312428,1775147444226,-150.0,0.00015143,2]
[419312429,1775147444235,-150.0,0.0001517,2]
[419312430,1775147444245,-150.0,0.00015177,2]
[419312431,1775147444255,-150.0,0.0001518,2]
[419312432,1775147444265,-150.0,0.00015197,2]
[419312433,1775147444275,-5027.71312001,0.000152,2]
[419312434,1775147444284,-1106.257721,0.000152,2]
[419312435,1775147444293,-287.523647,0.000152,2]
[419312436,1775147444303,-1106.257721,0.000152,2]
[419312437,1775147444312,-287.523647,0.000152,2]
[419312438,1775147444321,-1106.257721,0.000152,2]
[419312439,1775147444330,-287.523647,0.000152,2]
[419312440,1775147444339,-1106.257721,0.000152,2]
[419312441,1775147444348,-287.523647,0.000152,2]
[419312442,1775147444358,-31605.28636289,0.00015204,2]
[419312447,1775147445687,-338.0,0.00012569,2]
[419312448,1775147445698,-74.0,0.00013136,2]
[419312449,1775147445710,-201.5040028,0.00013136,2]
[419312450,1775147445720,-151.0,0.00013272,2]
[419312451,1775147445730,-858.4959972,0.00015204,2]
[419312452,1775147445742,-4016.4,0.00015204,2]
[419312453,1775147445778,-3975.03930897,0.00015204,2]
[419312454,1775147445790,-24104.6103854,0.00015204,2]
[419312455,1775147445815,-151.0,0.00013698,2]
[419312456,1775147445825,-541.83449695,0.00015204,2]
[419312457,1775147445837,-963.42602351,0.00015204,2]
[419312487,1775147447438,-151.37,0.00012749,2]
[419312488,1775147447449,-945.84548948,0.00015204,2]
[419312489,1775147447458,-151.0,0.00015204,2]
[419312490,1775147447468,-151.0,0.00015204,2]
[419312491,1775147447477,-151.0,0.00015204,2]
[419312492,1775147447487,-151.0,0.00015204,2]
[419312493,1775147447497,-851.580396,0.00015204,2]
[419312494,1775147447506,-851.580396,0.00015204,2]
[419312495,1775147447516,-851.580396,0.00015204,2]
[419312496,1775147447525,-851.580396,0.00015204,2]
[419312497,1775147447535,-151.0,0.00015204,2]
[419312498,1775147447544,-151.0,0.00015204,2]
[419312499,1775147447553,-151.0,0.00015204,2]
[419312500,1775147447562,-151.250482,0.00015204,2]
[419312501,1775147447572,-151.0,0.00015204,2]
[419312502,1775147447581,-151.0,0.00015204,2]
[419312503,1775147447591,-603.311962,0.00015204,2]
[419312504,1775147447600,-150.22089191,0.00015204,2]
[419312505,1775147448191,-182.026986,0.00013524,2]
[419312506,1775147448200,-453.09107009,0.00015204,2]
[419312507,1775147448210,-603.311962,0.00015204,2]
[419312508,1775147448220,-603.311962,0.00015204,2]
[419312509,1775147448229,-183.66933519,0.00015204,2]
[419312510,1775147448239,-151.0,0.00015205,2]
[419312511,1775147448248,-151.0,0.00015205,2]
[419312512,1775147448258,-151.0,0.00015205,2]
[419312513,1775147448267,-151.0,0.00015205,2]
[419312514,1775147448276,-151.0,0.00015205,2]
[419312515,1775147448286,-151.0,0.00015205,2]
[419312516,1775147448295,-151.0,0.00015205,2]
[419312517,1775147448305,-480.930567,0.00015205,2]
[419312518,1775147448314,-480.930567,0.00015205,2]
[419312519,1775147448324,-480.930567,0.00015205,2]
[419312520,1775147448333,-480.930567,0.00015205,2]
[419312521,1775147448342,-1106.257721,0.00015205,2]
[419312522,1775147448351,-287.523647,0.00015205,2]
[419312523,1775147448360,-368.32973714,0.00015205,2]
[419312524,1775147448372,-737.92798386,0.00015205,2]
[419312525,1775147448382,-287.523647,0.00015205,2]
[419312526,1775147448391,-1106.257721,0.00015205,2]
[419312527,1775147448400,-287.523647,0.00015205,2]
[419312528,1775147448410,-1106.257721,0.00015205,2]
[419312529,1775147448419,-500.0,0.00015205,2]
[419312530,1775147448429,-287.523647,0.00015205,2]
[419312531,1775147448438,-87268.8906829,0.00015205,2]
[419312532,1775147448448,-10000.0,0.00015205,2]
[419312533,1775147448457,-150.0,0.00015207,2]
[419312534,1775147448467,-197.11348968,0.00015211,2]
[419312535,1775147448478,-150.0,0.00015215,2]
[419312536,1775147448487,-150.0,0.00015237,2]
[419312537,1775147448498,-150.0,0.00015242,2]
[419312538,1775147448507,-150.0,0.0001525,2]
[419312539,1775147448517,-150.0,0.00015262,2]
[419312540,1775147448526,-150.0,0.00015272,2]
[419312541,1775147448536,-23.29336865,0.00015273,2]
[419312542,1775147448548,-476.70663135,0.00015273,2]
[419312543,1775147448557,-337.66380378,0.00015273,2]
[419312544,1775147448567,-500.0,0.00015273,2]
[419312545,1775147448576,-312.60583326,0.00015273,2]
[419312546,1775147448586,-500.0,0.00015273,2]
[419312547,1775147448595,-500.0,0.00015273,2]
[419312548,1775147448604,-500.0,0.00015273,2]
[419312549,1775147448613,-166.46025281,0.00015273,2]
[419312550,1775147448623,-491.54112601,0.00015285,2]
[419312551,1775147448632,-156.32,0.00015285,2]
[419312552,1775147448641,-150.0,0.00015304,2]
[419312553,1775147448651,-150.0,0.00015304,2]
[419312554,1775147448660,-150.0,0.00015304,2]
[419312555,1775147448670,-150.0,0.00015304,2]
[419312556,1775147448679,-150.0,0.00015304,2]
[419312557,1775147448689,-150.0,0.00015304,2]
[419312558,1775147448698,-150.0,0.00015304,2]
[419312559,1775147448708,-150.0,0.00015304,2]
[419312560,1775147448718,-959.83,0.00015312,2]
[419312561,1775147448727,-3292.0,0.00015329,2]
[419312562,1775147448737,-150.0,0.00015336,2]
[419312563,1775147448747,-248.17508009,0.00015337,2]
[419312564,1775147448756,-150.0,0.00015347,2]
[419312565,1775147448766,-150.0,0.00015358,2]
[419312566,1775147448775,-150.0,0.00015366,2]
[419312567,1775147448784,-2000.0,0.00015367,2]
[419312568,1775147448794,-2000.0,0.00015367,2]
[419312569,1775147448804,-150.0,0.00015371,2]
[419312570,1775147448813,-150.0,0.00015394,2]
[419312571,1775147448822,-234.3223,0.000154,17]
[419312572,1775147448832,-150.0,0.00015401,2]
[419312573,1775147448841,-236.17675835,0.00015402,2]
[419312574,1775147448851,-150.0,0.00015412,2]
[419312575,1775147448860,-385.70980104,0.00015424,2]
[419312576,1775147448869,-150.0,0.00015428,2]
[419312577,1775147448879,-150.0,0.00015431,2]
[419312578,1775147448888,-150.0,0.00015438,2]
[419312579,1775147448898,-500.0,0.00015452,2]
[419312580,1775147448907,-150.0,0.00015465,2]
[419312581,1775147448917,-150.0,0.00015465,2]
[419312582,1775147448926,-150.0,0.00015465,2]
[419312583,1775147448935,-150.0,0.00015465,2]
[419312584,1775147448944,-150.0,0.00015483,2]
[419312585,1775147448954,-188.07833534,0.00015487,2]
[419312586,1775147448964,-150.0,0.0001549,2]
[419312587,1775147448973,-150.0,0.00015505,2]
[419312588,1775147448983,-2448.9546044,0.00015507,2]
[419312589,1775147448995,-1174.1553956,0.00015507,2]
[419312590,1775147449005,-150.0,0.00015516,2]
[419312591,1775147449014,-150.0,0.00015519,2]
[419312592,1775147449025,-595.8446044,0.00015521,2]
[419312593,1775147449067,-266.180693,0.00015521,2]
[419312617,1775148632925,-1000.0,0.00012473,2]
[419312620,1775148632937,-195.0,0.00012537,2]
[419312621,1775148632947,-1500.0,0.00012601,2]
[419312622,1775148632958,-195.0,0.00012731,2]
[419312623,1775148632969,-195.0,0.00012731,2]
[419312624,1775148632980,-300.53121587,0.00012731,2]
[419312625,1775148632992,-157.45040002,0.00012929,2]
[419312626,1775148633005,-19.28631517,0.00012929,2]
[419312627,1775148633016,-500.0,0.00012944,2]
[419312628,1775148633027,-167.87507175,0.00013073,2]
[419312629,1775148633052,-781.95418243,0.00013073,2]
[419312630,1775148633064,-250.17074582,0.00013073,2]
[419312631,1775148633075,-1418.80493795,0.00013074,2]
[419312632,1775148633088,-3109.10506205,0.00013074,2]
[419312633,1775148633098,-300.0,0.00013111,2]
[419312634,1775148633109,-300.0,0.00013111,2]
[419312635,1775148633120,-455.85789347,0.00013112,2]
[419312636,1775148633133,-122.35134961,0.00013112,2]
[419312637,1775148633145,-209.40437684,0.00013112,2]
[419312638,1775148633156,-500.0,0.00013112,2]
[419312639,1775148633166,-156.86681255,0.00013112,2]
[419312640,1775148633178,-71.52143187,0.00013167,2]
[419312641,1775148633191,-428.47856813,0.00013167,2]
[419312642,1775148633203,-471.62637998,0.00013222,2]
[419312643,1775148633284,-28.37362002,0.00013222,2]
[419312644,1775148633297,-500.0,0.00013277,2]
[419312645,1775148633310,-481.11,0.00013298,2]
[419312646,1775148633322,-391.0,0.00013329,2]
[419312647,1775148633333,-184.62136765,0.00013332,2]
[419312648,1775148633347,-315.37863235,0.00013332,2]
[419312649,1775148633357,-32.05644831,0.00013355,2]
[419312650,1775148633372,-803.94355169,0.00013355,2]
[419312652,1775148633386,-228.0,0.00013367,2]
[419312654,1775148633397,-500.0,0.00013387,2]
[419312655,1775148633407,-500.0,0.00013442,2]
[419312656,1775148633418,-150.0,0.00013483,2]
[419312657,1775148633429,-1046.33843353,0.00013484,2]
[419312658,1775148633442,-8505.82943194,0.00013484,2]
[419312659,1775148633453,-151.0,0.00013484,2]
[419312660,1775148633464,-174.61919141,0.00013484,2]
[419312661,1775148633475,-802.22446877,0.00013484,2]
[419312662,1775148633486,-170.0,0.00013484,2]
[419312663,1775148633497,-170.0,0.00013484,2]
[419312664,1775148633508,-170.0,0.00013484,2]
[419312665,1775148633519,-170.0,0.00013484,2]
[419312666,1775148633529,-170.0,0.00013484,2]
[419312667,1775148633540,-170.0,0.00013484,2]
[419312668,1775148633550,-170.0,0.00013484,2]
[419312669,1775148634544,-170.0,0.00013484,2]
[419312670,1775148634584,-170.0,0.00013484,2]
[419312671,1775148634611,-170.0,0.00013484,2]
[419312672,1775148634629,-170.0,0.00013484,2]
[419312673,1775148634640,-500.0,0.00013497,2]
[419312674,1775148634650,-509.0,0.000135,2]
[419312675,1775148634659,-8574.39746192,0.00013539,2]
[419312676,1775148635626,-1331.20061458,0.00013539,2]
[419312677,1775148635637,-73.93442054,0.00013539,2]
[419312678,1775148635649,-77.06557946,0.00013539,2]
[419312679,1775148635660,-500.0,0.00013552,2]
[419312680,1775148635670,-10272.10520533,0.00013594,2]
[419312681,1775148635680,-151.0,0.00013594,2]
[419312682,1775148635690,-500.0,0.00013594,2]
[419312683,1775148635700,-500.0,0.00013607,2]
[419312684,1775148635709,-270.6128,0.0001362,2]
[419312685,1775148635720,-4414.64120244,0.00013644,2]
[419312686,1775148635754,-4024.35879756,0.00013644,2]
[419312687,1775148635763,-10652.17309792,0.00013649,2]
[419312688,1775148635773,-151.0,0.00013649,2]
[419312689,1775148635783,-344.69331007,0.0001366,2]
[419312690,1775148635792,-500.0,0.00013662,2]
[419312691,1775148635802,-610.36,0.0001369,2]
[419312692,1775148635812,-500.0,0.00013698,2]
[419312693,1775148635822,-500.0,0.00013698,2]
[419312694,1775148635832,-500.0,0.00013698,2]
[419312695,1775148635842,-500.0,0.00013698,2]
[419312696,1775148635852,-500.0,0.00013698,2]
[419312697,1775148635862,-500.0,0.00013698,2]
[419312698,1775148635872,-500.0,0.00013698,2]
[419312699,1775148635881,-507.27121127,0.00013698,2]
[419312700,1775148635893,-500.0,0.00013698,2]
[419312701,1775148635903,-500.0,0.00013698,2]
[419312702,1775148635912,-500.0,0.00013698,2]
[419312703,1775148635922,-500.0,0.00013698,2]
[419312704,1775148635933,-500.0,0.00013698,2]
[419312705,1775148635943,-500.0,0.00013698,2]
[419312706,1775148635956,-500.0,0.00013698,2]
[419312707,1775148635965,-500.0,0.00013698,2]
[419312708,1775148635975,-500.0,0.00013698,2]
[419312709,1775148635984,-500.0,0.00013698,2]
[419312710,1775148635994,-500.0,0.00013698,2]
[419312711,1775148636005,-500.0,0.00013698,2]
[419312712,1775148636014,-500.0,0.00013698,2]
[419312713,1775148636024,-500.0,0.00013698,2]
[419312714,1775148636033,-500.0,0.00013698,2]
[419312715,1775148636043,-500.0,0.00013698,2]
[419312716,1775148636053,-500.0,0.00013698,2]
[419312717,1775148636063,-500.0,0.00013698,2]
[419312718,1775148636073,-500.0,0.00013698,2]
[419312719,1775148636083,-500.0,0.00013698,2]
[419312720,1775148636093,-372.04738968,0.00013698,2]
[419312721,1775148636103,-500.0,0.00013698,2]
[419312722,1775148636112,-500.0,0.00013698,2]
[419312723,1775148636122,-500.0,0.00013698,2]
[419312724,1775148636133,-500.0,0.00013698,2]
[419312725,1775148636142,-500.0,0.00013698,2]
[419312726,1775148636152,-268.57302384,0.00013698,2]
[419312727,1775148636162,-500.0,0.00013698,2]
[419312728,1775148636171,-500.0,0.00013698,2]
[419312729,1775148636181,-500.0,0.00013698,2]
[419312730,1775148636190,-500.0,0.00013698,2]
[419312731,1775148636200,-500.0,0.00013698,2]
[419312732,1775148636211,-500.0,0.00013698,2]
[419312733,1775148636221,-500.0,0.00013698,2]
[419312734,1775148636231,-500.0,0.00013698,2]
[419312735,1775148636241,-500.0,0.00013698,2]
[419312736,1775148636250,-500.0,0.00013698,2]
[419312737,1775148636261,-500.0,0.00013698,2]
[419312738,1775148636272,-500.0,0.00013698,2]
[419312739,1775148636281,-150.0,0.00013699,2]
[419312740,1775148636292,-150.0,0.00013699,2]
[419312741,1775148636301,-166.66,0.00013699,2]
[419312742,1775148636312,-200.0,0.00013699,2]
[419312743,1775148636323,-151.76,0.00013699,2]
[419312744,1775148636332,-150.0,0.000137,2]
[419312745,1775148636342,-500.0,0.00013704,2]
[419312746,1775148636352,-200.0,0.00013704,2]
[419312747,1775148636361,-1428.38747117,0.00013704,2]
[419312748,1775148636371,-500.0,0.00013704,2]
[419312749,1775148636381,-500.0,0.00013704,2]
[419312750,1775148636391,-500.0,0.00013704,2]
[419312751,1775148636401,-500.0,0.00013704,2]
[419312752,1775148636412,-500.0,0.00013704,2]
[419312753,1775148636423,-500.0,0.00013704,2]
[419312754,1775148636433,-500.0,0.00013704,2]
[419312755,1775148636442,-500.0,0.00013704,2]
[419312756,1775148636452,-500.0,0.00013704,2]
[419312757,1775148636463,-500.0,0.00013704,2]
[419312758,1775148636472,-151.0,0.00013704,2]
[419312759,1775148636482,-151.0,0.00013704,2]
[419312760,1775148636492,-151.0,0.00013704,2]
[419312761,1775148636502,-151.0,0.00013704,2]
[419312762,1775148636512,-151.0,0.00013704,2]
[419312763,1775148636521,-151.0,0.00013704,2]
[419312764,1775148636531,-500.0,0.00013704,2]
[419312765,1775148636543,-500.0,0.00013704,2]
[419312766,1775148636555,-151.0,0.00013704,2]
[419312767,1775148636566,-500.0,0.00013704,2]
[419312768,1775148636575,-151.0,0.00013704,2]
[419312769,1775148636584,-500.0,0.00013704,2]
[419312770,1775148636594,-151.0,0.00013704,2]
[419312771,1775148636604,-151.0,0.00013704,2]
[419312772,1775148636614,-500.0,0.00013704,2]
[419312773,1775148636624,-151.0,0.00013704,2]
[419312774,1775148636634,-500.0,0.00013704,2]
[419312775,1775148636643,-151.0,0.00013704,2]
[419312776,1775148636653,-500.0,0.00013704,2]
[419312777,1775148636663,-500.0,0.00013704,2]
[419312778,1775148636673,-151.0,0.00013704,2]
[419312779,1775148636682,-151.0,0.00013704,2]
[419312780,1775148636692,-500.0,0.00013704,2]
[419312781,1775148636701,-500.0,0.00013704,2]
[419312782,1775148636711,-151.0,0.00013704,2]
[419312783,1775148636720,-151.0,0.00013704,2]
[419312784,1775148636730,-200.0,0.00013704,2]
[419312785,1775148636739,-500.0,0.00013704,2]
[419312786,1775148636749,-500.0,0.00013704,2]
[419312787,1775148636759,-151.0,0.00013704,2]
[419312788,1775148636769,-151.0,0.00013704,2]
[419312789,1775148636778,-151.0,0.00013704,2]
[419312790,1775148636898,-500.0,0.00013704,2]
[419312791,1775148636909,-500.0,0.00013704,2]
[419312792,1775148636918,-151.0,0.00013704,2]
[419312793,1775148636927,-151.0,0.00013704,2]
[419312794,1775148636936,-500.0,0.00013704,2]
[419312795,1775148636945,-500.0,0.00013704,2]
[419312796,1775148636954,-151.0,0.00013704,2]
[419312797,1775148636963,-151.0,0.00013704,2]
[419312798,1775148636973,-500.0,0.00013704,2]
[419312799,1775148636982,-151.0,0.00013704,2]
[419312800,1775148636991,-151.0,0.00013704,2]
[419312801,1775148637000,-151.0,0.00013704,2]
[419312802,1775148637010,-500.0,0.00013704,2]
[419312803,1775148637019,-151.0,0.00013704,2]
[419312804,1775148637029,-151.0,0.00013704,2]
[419312805,1775148637038,-500.0,0.00013704,2]
[419312806,1775148637048,-151.0,0.00013704,2]
[419312807,1775148637059,-151.0,0.00013704,2]
[419312808,1775148637069,-500.0,0.00013704,2]
[419312809,1775148637078,-151.0,0.00013704,2]
[419312810,1775148637087,-500.0,0.00013704,2]
[419312811,1775148637096,-500.0,0.00013704,2]
[419312812,1775148637105,-279.9045709,0.00013704,2]
[419312813,1775148637114,-250.0,0.00013704,2]
[419312814,1775148637124,-250.0,0.00013704,2]
[419312815,1775148637132,-250.0,0.00013704,2]
[419312816,1775148637142,-250.0,0.00013704,2]
[419312817,1775148637152,-250.0,0.00013704,2]
[419312818,1775148637161,-250.0,0.00013704,2]
[419312819,1775148637171,-250.0,0.00013704,2]
[419312820,1775148637180,-250.0,0.00013704,2]
[419312821,1775148637190,-250.0,0.00013704,2]
[419312822,1775148637199,-250.0,0.00013704,2]
[419312823,1775148637209,-250.0,0.00013704,2]
[419312824,1775148637219,-743.50770149,0.00013704,2]
[419312825,1775148637228,-11046.30350255,0.00013704,2]
[419312826,1775148637238,-151.0,0.00013704,2]
[419312827,1775148637248,-5000.0,0.0001372,2]
[419312828,1775148637258,-300.0,0.0001372,2]
[419312829,1775148637267,-300.0,0.0001372,2]
[419312830,1775148637277,-300.0,0.0001372,2]
[419312831,1775148637289,-300.0,0.0001372,2]
[419312832,1775148637298,-300.0,0.0001372,2]
[419312833,1775148637310,-2500.0,0.0001372,2]
[419312834,1775148637319,-2500.0,0.0001372,2]
[419312836,1775148637328,-2500.0,0.0001372,2]
[419312837,1775148637339,-2500.0,0.0001372,2]
[419312838,1775148637349,-2647.04564404,0.0001372,2]
[419312839,1775148637358,-448.07422048,0.0001372,2]
[419312840,1775148637367,-195.0,0.0001372,2]
[419312841,1775148637377,-10965.8899,0.00013755,2]
[419312842,1775148637386,-11455.01673214,0.00013759,2]
[419312843,1775148637395,-151.0,0.00013759,2]
[419312844,1775148637404,-500.0,0.00013773,2]
[419312845,1775148637414,-500.0,0.00013773,2]
[419312846,1775148637423,-500.0,0.00013813,2]
[419312847,1775148637434,-500.0,0.00013813,2]
[419312848,1775148637443,-500.0,0.00013813,2]
[419312849,1775148637453,-291.95062242,0.00013813,2]
[419312850,1775148637462,-459.03205094,0.00013813,2]
[419312851,1775148637472,-11878.85235123,0.00013814,2]
[419312852,1775148637481,-151.0,0.00013814,2]
[419312853,1775148637491,-500.0,0.00013829,2]
[419312854,1775148637500,-166.66,0.00013836,2]
[419312855,1775148637511,-150.0,0.00013858,2]
[419312856,1775148637520,-150.0,0.00013858,2]
[419312857,1775148637530,-150.0,0.00013858,2]
[419312858,1775148637540,-150.0,0.00013858,2]
[419312859,1775148637551,-150.0,0.00013858,2]
[419312860,1775148637561,-150.0,0.00013858,2]
[419312861,1775148637572,-62.414437,0.00013858,2]
[419312862,1775148637606,-87.585563,0.00013858,2]
[419312863,1775148637616,-150.0,0.00013858,2]
[419312864,1775148637625,-150.0,0.00013858,2]
[419312865,1775148637634,-150.0,0.00013858,2]
[419312866,1775148637643,-150.0,0.00013858,2]
[419312867,1775148637653,-150.0,0.00013858,2]
[419312868,1775148637662,-150.0,0.00013858,2]
[419312869,1775148637672,-16175.29416392,0.00013865,2]
[419312870,1775148637681,-500.0,0.00013868,2]
[419312871,1775148637691,-9407.62396624,0.00013869,2]
[419312872,1775148637700,-151.0,0.00013869,2]
[419312873,1775148637709,-150.0,0.00013906,2]
[419312874,1775148637718,-150.0,0.00013907,2]
[419312875,1775148637727,-150.0,0.00013911,2]
[419312876,1775148637736,-150.0,0.00013915,2]
[419312877,1775148637746,-151.0,0.00013924,2]
[419312878,1775148637755,-150.0,0.00013924,2]
[419312879,1775148637764,-281.441801,0.00013937,7]
[419312880,1775148637773,-150.0,0.00013954,2]
[419312881,1775148637783,-150.0,0.00013957,2]
[419312882,1775148637792,-150.0,0.00013964,2]
[419312883,1775148637801,-610.36,0.00013964,2]
[419312884,1775148637811,-150.0,0.00013972,2]
[419312885,1775148637820,-150.0,0.00013973,2]
[419312886,1775148637829,-166.66,0.00013973,2]
[419312887,1775148637838,-151.0,0.00013979,2]
[419312888,1775148637848,-150.0,0.00013991,2]
[419312889,1775148637857,-150.0,0.00013998,2]
[419312890,1775148637866,-320.97011792,0.00014,2]
[419312891,1775148637875,-150.0,0.00014002,2]
[419312892,1775148637885,-150.0,0.00014007,2]
[419312893,1775148637894,-150.0,0.00014012,2]
[419312894,1775148637904,-150.0,0.00014017,2]
[419312895,1775148637913,-150.0,0.00014029,2]
[419312896,1775148637922,-181.08010149,0.00014032,2]
[419312897,1775148637931,-151.0,0.00014034,2]
[419312898,1775148637940,-150.0,0.0001405,2]
[419312899,1775148637950,-150.0,0.00014056,2]
[419312900,1775148637960,-150.0,0.00014058,2]
[419312901,1775148637970,-156.8,0.00014064,2]
[419312902,1775148637982,-150.0,0.0001407,2]
[419312903,1775148637992,-583.0,0.00014082,2]
[419312904,1775148638001,-150.0,0.00014086,2]
[419312905,1775148638010,-150.0,0.00014098,2]
[419312906,1775148638019,-150.0,0.00014106,2]
[419312907,1775148638028,-166.66,0.0001411,2]
[419312908,1775148638038,-150.0,0.00014114,2]
[419312909,1775148638048,-150.0,0.00014123,2]
[419312910,1775148638058,-150.0,0.00014125,2]
[419312911,1775148638069,-150.0,0.00014137,2]
[419312912,1775148638080,-150.0,0.00014143,2]
[419312913,1775148638089,-150.0,0.00014146,2]
[419312914,1775148638099,-150.0,0.00014156,2]
[419312915,1775148638108,-150.0,0.00014165,2]
[419312917,1775148638117,-150.0,0.00014176,2]
[419312918,1775148638126,-150.0,0.00014192,2]
[419312919,1775148638136,-150.0,0.00014194,2]
[419312920,1775148638145,-150.0,0.000142,2]
[419312921,1775148638155,-150.0,0.00014205,2]
[419312922,1775148638164,-150.0,0.00014229,2]
[419312923,1775148638174,-610.36,0.00014238,2]
[419312924,1775148638184,-150.0,0.00014242,2]
[419312925,1775148638193,-150.0,0.00014242,2]
[419312926,1775148638202,-166.66,0.00014247,2]
[419312927,1775148638211,-200.0,0.00014252,2]
[419312928,1775148638221,-1481.23780761,0.00014252,2]
[419312929,1775148638230,-200.0,0.00014252,2]
[419312930,1775148638239,-290.26104003,0.00014252,2]
[419312931,1775148638248,-771.01748645,0.00014252,2]
[419312932,1775148638258,-150.0,0.00014255,2]
[419312933,1775148638269,-150.0,0.00014257,2]
[419312934,1775148638278,-150.0,0.00014259,2]
[419312935,1775148638289,-500.0,0.00014274,2]
[419312936,1775148638300,-150.0,0.00014277,2]
[419312937,1775148638309,-150.0,0.00014282,2]
[419312938,1775148638319,-150.0,0.00014291,2]
[419312939,1775148638329,-150.0,0.00014305,2]
[419312940,1775148638339,-150.0,0.00014314,2]
[419312941,1775148638348,-150.0,0.00014319,2]
[419312942,1775148638357,-671.83968012,0.00014321,2]
[419312943,1775148638366,-150.0,0.00014326,2]
[419312944,1775148638375,-150.0,0.00014335,2]
[419312945,1775148638384,-150.0,0.00014339,2]
[419312946,1775148638393,-150.0,0.00014354,2]
[419312947,1775148638403,-150.0,0.00014371,2]
[419312948,1775148638412,-150.0,0.00014371,2]
[419312949,1775148638422,-420.0,0.00014377,2]
[419312950,1775148638432,-166.66,0.00014384,2]
[419312951,1775148638441,-150.0,0.00014387,2]
[419312952,1775148638451,-150.0,0.00014388,2]
[419312953,1775148638460,-150.0,0.00014393,2]
[419312954,1775148638470,-150.0,0.00014404,2]
[419312955,1775148638480,-150.0,0.00014417,2]
[419312956,1775148638489,-166.66,0.00014422,2]
[419312957,1775148638499,-150.0,0.00014428,2]
[419312958,1775148638509,-1495.00358519,0.00014431,2]
[419312961,1775148639494,-1634.3191374,0.00014431,2]
[419312972,1775148640148,-6713.73495353,0.00014431,2]
[419312973,1775148640219,-1184.1147305,0.00014431,2]
[419312974,1775148640230,-342.26322073,0.00014431,2]
[419312975,1775148640241,-579.28668309,0.00014431,2]
[419312976,1775148640273,-354.905,0.00014431,2]
[419312977,1775148640284,-450.9,0.00014431,2]
[419313018,1775148642796,-473.36372831,0.00014431,2]
[419313055,1775148646753,-435.92769506,0.00014431,2]
[419313060,1775148646786,-450.0,0.00014431,2]
[419313061,1775148646806,-10472.09498996,0.00014431,2]
[419313062,1775148646815,-2601.69750302,0.00014431,2]
[419313063,1775148646824,-61.33051527,0.00014435,2]
[419313064,1775148646847,-88.66948473,0.00014435,2]
[419313065,1775148646857,-150.0,0.00014442,2]
[419313066,1775148646867,-150.0,0.00014454,2]
[419313067,1775148646877,-481.11,0.00014459,2]
[419313068,1775148646887,-150.0,0.0001446,2]
[419313069,1775148646898,-68.55971617,0.00014472,2]
[419313071,1775149538757,-211.30186859,0.00010949,2]
[419313072,1775149547542,333.82676684,0.000106,5]
[419313081,1775149831891,-3135.75593927,9.5e-05,3]
[419313082,1775149831921,-1046.42972454,9.5e-05,3]
[419313083,1775149831932,-2015.80487419,9.5e-05,3]
[419313084,1775149831943,-729.0,9.5e-05,3]
[419313088,1775149832984,-422.55775913,9.5e-05,3]